fUSD/lending_fUSD_20251206
["ID","MTS","AMOUNT","RATE_DAILY","PERIOD"]
[396505936,1765014961581,300.0,0.00014934,2]
[396505937,1765014968444,150.0,0.000149,2]
[396505938,1765015023680,150.0,0.00014934,2]
[396505939,1765015032993,75.88218531,0.000149,2]
[396505940,1765015033014,74.11781469,0.000149,2]
[396505941,1765015113946,4589.39388919,0.00014835,2]
[396505942,1765015117150,210.38135111,0.00014835,2]
[396505943,1765015130040,250.0,0.00014926,2]
[396505944,1765015130678,250.0,0.00014926,2]
[396505945,1765015131312,250.0,0.00014926,2]
[396505946,1765015131909,250.0,0.00014926,2]
[396505947,1765015132527,250.0,0.00014926,2]
[396505948,1765015133210,250.0,0.00014926,2]
[396505949,1765015133947,250.0,0.00014926,2]
[396505950,1765015134445,250.0,0.00014926,2]
[396505951,1765015135058,250.0,0.00014926,2]
[396505952,1765015169900,157.39,0.00012469,2]
[396505953,1765015201240,300.0,0.00014934,2]
[396505954,1765015201359,1200.0,0.00014934,2]
[396505955,1765015203803,150.0,0.00014934,2]
[396505956,1765015204589,274.0,0.00014935,2]
[396505970,1765015264096,171.85510083,0.00014935,2]
[396505971,1765015264160,216.55886152,0.00014935,2]
[396505972,1765015293031,406.31298266,0.00014637,2]
[396505973,1765015293054,1155.02901734,0.00014637,2]
[396505974,1765015293222,169.65491957,0.00014637,2]
[396505975,1765015316399,5738.1227064,0.00014835,2]
[396505976,1765015318405,542.39133865,0.00014934,2]
[396505977,1765015328552,151.0,0.00014926,2]
[396505978,1765015329168,151.0,0.00014926,2]
[396505979,1765015329761,151.0,0.00014926,2]
[396505980,1765015330415,151.0,0.00014926,2]
[396505981,1765015331064,151.0,0.00014926,2]
[396505982,1765015331613,151.0,0.00014926,2]
[396505983,1765015332211,151.0,0.00014926,2]
[396505984,1765015332820,151.0,0.00014926,2]
[396505985,1765015333426,500.0,0.00014934,2]
[396505986,1765015333604,500.0,0.00014934,2]
[396505987,1765015333672,151.0,0.00014926,2]
[396505988,1765015333946,35.81201804,0.00014926,2]
[396505989,1765015333972,165.51096518,0.00014926,2]
[396505990,1765015334043,201.67121369,0.00014926,2]
[396505991,1765015334090,151.0,0.00014926,2]
[396505992,1765015334689,151.0,0.00014926,2]
[396505993,1765015335342,151.0,0.00014926,2]
[396505994,1765015335946,151.0,0.00014926,2]
[396505996,1765015337738,503.93214837,0.00014926,2]
[396505997,1765015338864,151.0,0.00014926,2]
[396505998,1765015339478,151.0,0.00014926,2]
[396505999,1765015340209,151.0,0.00014926,2]
[396506000,1765015340819,151.0,0.00014926,2]
[396506001,1765015341472,151.0,0.00014926,2]
[396506002,1765015342120,151.0,0.00014926,2]
[396506003,1765015343256,151.0,0.00014926,2]
[396506004,1765015343927,151.0,0.00014926,2]
[396506005,1765015344548,151.0,0.00014926,2]
[396506006,1765015345335,151.0,0.00014926,2]
[396506007,1765015345818,151.0,0.00014926,2]
[396506008,1765015354612,1000.0,0.00014926,2]
[396506009,1765015360843,186.83336823,0.00014926,2]
[396506010,1765015397367,184.08368216,0.00014835,2]
[396506011,1765015416325,2000.0,0.00025,120]
[396506012,1765015417157,257.78265125,0.00014935,2]
[396506013,1765015417199,234.60543331,0.00014935,2]
[396506014,1765015418098,175.95407498,0.00014935,2]
[396506015,1765015419246,151.0,0.00014935,2]
[396506016,1765015422078,-403.89210896,0.00014935,2]
[396506017,1765015441403,300.0,0.00014934,2]
[396506018,1765015464057,1059.26485646,0.00014835,2]
[396506019,1765015469655,938.22,0.00013699,2]
[396506021,1765015501266,300.0,0.00014934,2]
[396506022,1765015501302,1200.0,0.00014934,2]
[396506023,1765015556890,-282.09713267,0.00014935,2]
[396506030,1765015563807,-259.83615976,0.00014935,2]
[396506035,1765015565273,257.78265125,0.00014935,2]
[396506036,1765015565318,151.0,0.00014935,2]
[396506037,1765015566419,225.86222495,0.00014935,2]
[396506038,1765015567539,-300.67660326,0.00014935,2]
[396506039,1765015569268,-156.3663626,0.00014935,2]
[396506042,1765015598453,241.50673017,0.00014926,2]
[396506043,1765015598475,8.49326983,0.00014926,2]
[396506044,1765015599559,250.0,0.00014926,2]
[396506045,1765015600865,250.0,0.00014926,2]
[396506046,1765015601190,250.0,0.00014926,2]
[396506047,1765015601479,250.0,0.00014926,2]
[396506048,1765015602071,250.0,0.00014926,2]
[396506049,1765015602706,250.0,0.00014926,2]
[396506050,1765015603307,250.0,0.00014926,2]
[396506051,1765015603910,250.0,0.00014926,2]
[396506055,1765015624158,5032.89170658,0.00014835,2]
[396506056,1765015631360,1000.0,0.00014926,2]
[396506072,1765015654341,151.0,0.00014926,2]
[396506073,1765015654977,239.7235462,0.00014926,2]
[396506075,1765015676869,-213.09170802,0.00014935,2]
[396506076,1765015679521,-297.11985328,0.00014935,2]
[396506077,1765015680499,161.07322189,0.00014835,2]
[396506078,1765015681381,503.38985628,0.00014934,2]
[396506080,1765015691860,-201.12414264,0.00014935,2]
[396506081,1765015694783,-358.49772426,0.00014935,2]
[396506084,1765015696107,-161.52073571,0.00014935,2]
[396506093,1765015698882,-211.61442592,0.00014935,2]
[396506096,1765015700903,-167.26176925,0.00014935,2]
[396506097,1765015702233,903.43839922,0.00014835,2]
[396506098,1765015702259,4260.87203654,0.00014835,2]
[396506099,1765015703036,-202.53969017,0.00014935,2]
[396506101,1765015710371,-244.7084883,0.00014935,2]
[396506102,1765015713529,-209.03049698,0.00014935,2]
[396506103,1765015715690,-167.83434139,0.00014935,2]
[396506104,1765015717737,-300.0,0.00014935,2]
[396506105,1765015719360,-170.06483356,0.00014935,2]
[396506111,1765015751950,5739.13796346,0.00014835,2]
[396506112,1765015751974,10000.01,0.00014835,2]
[396506113,1765015751997,10000.01,0.00014835,2]
[396506114,1765015752020,10000.01,0.00014835,2]
[396506115,1765015752048,10000.01,0.00014835,2]
[396506116,1765015752072,10000.01,0.00014835,2]
[396506117,1765015752099,10000.01,0.00014835,2]
[396506118,1765015752127,10000.01,0.00014835,2]
[396506119,1765015752151,10000.01,0.00014835,2]
[396506120,1765015752176,10000.01,0.00014835,2]
[396506121,1765015752393,-195.0,0.00014835,2]
[396506122,1765015755612,-300.0,0.00014835,2]
[396506134,1765015759174,-244.77459264,0.00014835,2]
[396506137,1765015760434,-169.53582132,0.00014835,2]
[396506138,1765015762559,-168.25858912,0.00014835,2]
[396506139,1765015764563,-300.0,0.00014835,2]
[396506140,1765015766155,-272.84819235,0.00014835,2]
[396506142,1765015769190,-167.93836126,0.00014835,2]
[396506143,1765015770474,-164.18927761,0.00014835,2]
[396506144,1765015772537,-156.3663626,0.00014835,2]
[396506147,1765015796894,-156.0888031,0.00014835,2]
[396506148,1765015799591,-177.63303833,0.00014835,2]
[396506149,1765015801309,300.0,0.00014834,2]
[396506150,1765015801365,1200.0,0.00014834,2]
[396506151,1765015803779,273.0,0.00014835,2]
[396506171,1765015831422,-73626.50491977,0.00014835,2]
[396506174,1765015831474,-999.0,0.00014835,2]
[396506175,1765015831528,-2689.86,0.00014835,2]
[396506176,1765015831647,-448.80583107,0.00014835,2]
[396506177,1765015832079,188.95334149,0.00014834,2]
[396506199,1765015839556,-584023.96824737,0.00014835,2]
[396506200,1765015839566,-250.0,0.00014881,2]
[396506201,1765015839578,-250.0,0.00014913,2]
[396506202,1765015839588,-500.0,0.00014926,2]
[396506203,1765015839598,-500.0,0.00014926,2]
[396506204,1765015839608,-500.0,0.00014926,2]
[396506205,1765015839617,-500.0,0.00014926,2]
[396506206,1765015839627,-500.0,0.00014926,2]
[396506207,1765015839636,-500.0,0.00014926,2]
[396506208,1765015839645,-500.0,0.00014926,2]
[396506209,1765015839655,-500.0,0.00014926,2]
[396506210,1765015839665,-500.0,0.00014926,2]
[396506211,1765015839675,-1000.0,0.00014935,2]
[396506212,1765015839684,-300.0,0.00014935,2]
[396506213,1765015839694,-300.0,0.00014936,2]
[396506214,1765015839703,-195.0,0.00014936,2]
[396506215,1765015839713,-300.0,0.00014942,2]
[396506216,1765015839723,-196.21411934,0.00014942,2]
[396506217,1765015839733,-300.0,0.00014964,2]
[396506218,1765015839742,-195.0,0.00014964,2]
[396506219,1765015839752,-500.0,0.00014972,2]
[396506220,1765015839763,-500.0,0.00015035,2]
[396506221,1765015839772,-500.0,0.00015035,2]
[396506222,1765015839782,-245.31,0.00015062,2]
[396506223,1765015839791,-9999.99,0.00015176,2]
[396506224,1765015839801,-1458.8,0.00015176,2]
[396506225,1765015839811,-9999.99,0.00015176,2]
[396506226,1765015839820,-150.99,0.00015176,2]
[396506227,1765015839830,-299.99,0.00015176,2]
[396506228,1765015839839,-150.99,0.00015176,2]
[396506229,1765015839850,-9999.99,0.00015176,2]
[396506230,1765015839859,-5032.89170656,0.00015176,2]
[396506231,1765015839868,-5164.31043572,0.00015176,2]
[396506232,1765015839878,-530.41,0.00015406,2]
[396506233,1765015839887,-161.07322189,0.00015412,2]
[396506234,1765015839897,-182.56,0.00015443,2]
[396506235,1765015839906,-1000.0,0.00015474,2]
[396506236,1765015839915,-3251.97,0.00015484,2]
[396506238,1765015839924,-5032.89170656,0.00015516,2]
[396506240,1765015839934,-5164.31043572,0.00015516,2]
[396506242,1765015839944,-1000.0,0.00015522,2]
[396506244,1765015839953,-10523.56,0.00015522,2]
[396506246,1765015839963,-3179.4,0.00015571,2]
[396506248,1765015839973,-200.0,0.00015572,2]
[396506249,1765015839982,-500.0,0.00015583,2]
[396506250,1765015839992,-157.39,0.00015586,2]
[396506252,1765015840002,-165.48877009,0.00015588,2]
[396506254,1765015840011,-604.0,0.00015593,2]
[396506256,1765015840020,-654.07582257,0.00015701,2]
[396506258,1765015840030,-9516.6,0.00015718,2]
[396506260,1765015840039,-435.2,0.00015816,2]
[396506262,1765015840048,-1930.01,0.00015852,2]
[396506264,1765015840058,-5032.89170656,0.00015857,2]
[396506266,1765015840067,-5164.31043572,0.00015857,2]
[396506268,1765015840077,-166.12,0.00015864,2]
[396506270,1765015840087,-245.31,0.00015898,2]
[396506272,1765015840096,-256.28651657,0.00015901,2]
[396506274,1765015840106,-200.1,0.00015922,2]
[396506275,1765015840115,-161.07322189,0.0001599,2]
[396506276,1765015840125,-588.90373772,0.00015999,2]
[396506277,1765015840135,-150.0,0.00016,2]
[396506278,1765015840148,-150.0,0.00016,2]
[396506279,1765015840158,-150.67371232,0.00016,2]
[396506280,1765015840167,-150.93378284,0.00016,2]
[396506281,1765015840176,-152.01489558,0.00016,2]
[396506282,1765015840187,-150.0,0.00016,2]
[396506284,1765015840199,-150.0,0.00016,2]
[396506285,1765015840214,-155.81906527,0.00016,2]
[396506286,1765015840223,-151.78638188,0.00016,2]
[396506287,1765015840233,-154.67900617,0.00016,2]
[396506288,1765015840243,-150.43281348,0.00016,2]
[396506289,1765015840252,-175.44413782,0.00016,2]
[396506290,1765015840261,-151.78488323,0.00016,2]
[396506291,1765015840270,-400.17609275,0.00016,2]
[396506292,1765015840279,-1000.0,0.00016022,2]
[396506293,1765015840288,-9999.99,0.00016116,2]
[396506294,1765015840297,-1000.0,0.00016136,3]
[396506295,1765015840307,-291.76259641,0.00016137,2]
[396506296,1765015840316,-5032.89170656,0.00016197,2]
[396506297,1765015840325,-5164.31043572,0.00016197,2]
[396506298,1765015840335,-1000.0,0.00016199,3]
[396506299,1765015840344,-150.0,0.000162,2]
[396506300,1765015840353,-150.0,0.000162,2]
[396506301,1765015840363,-150.0,0.000162,2]
[396506302,1765015840371,-150.0,0.000162,2]
[396506303,1765015840380,-150.0,0.000162,2]
[396506304,1765015840390,-150.0,0.000162,2]
[396506305,1765015840399,-150.0,0.000162,2]
[396506306,1765015840409,-150.0,0.000162,2]
[396506307,1765015840418,-150.0,0.000162,2]
[396506308,1765015840427,-150.0,0.000162,2]
[396506309,1765015840808,-150.0,0.000162,2]
[396506310,1765015840848,-150.0,0.000162,2]
[396506311,1765015840858,-150.0,0.000162,2]
[396506313,1765015840868,-150.0,0.000162,2]
[396506315,1765015840877,-150.0,0.000162,2]
[396506317,1765015840886,-200.0,0.00016203,2]
[396506319,1765015840896,-420.0,0.00016238,2]
[396506321,1765015840905,-150.0,0.00016258,2]
[396506324,1765015840919,-150.0,0.00016262,2]
[396506326,1765015840932,-150.0,0.00016278,2]
[396506328,1765015840941,-150.0,0.00016316,2]
[396506330,1765015840951,-1680.0,0.00016318,2]
[396506332,1765015840960,-250.0,0.00016319,2]
[396506334,1765015840970,-150.0,0.0001632,2]
[396506336,1765015840979,-150.0,0.00016324,2]
[396506338,1765015840988,-150.0,0.00016329,2]
[396506340,1765015840998,-150.0,0.00016329,2]
[396506342,1765015841012,-592.43343956,0.0001634,2]
[396506344,1765015841024,-150.0,0.00016357,2]
[396506346,1765015841033,-150.0,0.00016374,2]
[396506347,1765015841042,-150.0,0.0001638,2]
[396506348,1765015841052,-150.0,0.00016386,2]
[396506349,1765015841061,-201.0,0.000164,2]
[396506350,1765015841071,-282.0,0.000164,2]
[396506351,1765015841080,-161.0,0.000164,2]
[396506352,1765015841090,-162.42091449,0.000164,2]
[396506353,1765015841099,-300.0,0.00016429,2]
[396506354,1765015841109,-195.0,0.00016429,2]
[396506355,1765015841118,-300.0,0.00016429,2]
[396506356,1765015841128,-289.8175195,0.00016429,2]
[396506357,1765015841138,-500.0,0.00016429,2]
[396506358,1765015841148,-150.0,0.00016432,2]
[396506359,1765015841158,-150.0,0.00016435,2]
[396506360,1765015841169,-500.0,0.00016438,2]
[396506361,1765015841179,-500.0,0.00016438,2]
[396506362,1765015841188,-500.0,0.00016438,2]
[396506363,1765015841199,-500.0,0.00016438,2]
[396506364,1765015841209,-500.0,0.00016438,2]
[396506365,1765015841219,-500.0,0.00016438,2]
[396506366,1765015841228,-500.0,0.00016438,2]
[396506367,1765015841237,-500.0,0.00016438,2]
[396506368,1765015841246,-259.23417085,0.00016438,2]
[396506369,1765015841255,-500.0,0.00016438,2]
[396506370,1765015841265,-500.0,0.00016438,2]
[396506371,1765015841274,-9527.34,0.00016438,2]
[396506372,1765015841283,-150.0,0.0001644,2]
[396506373,1765015841293,-150.0,0.00016448,2]
[396506374,1765015841304,-150.0,0.00016457,2]
[396506375,1765015841313,-150.0,0.00016457,2]
[396506376,1765015841324,-553.0,0.00016464,2]
[396506377,1765015841335,-150.0,0.0001649,2]
[396506378,1765015841344,-150.0,0.000165,2]
[396506379,1765015841353,-150.0,0.0001651,2]
[396506380,1765015841362,-150.0,0.00016513,2]
[396506381,1765015841372,-166.12,0.00016519,2]
[396506382,1765015841381,-5032.89170656,0.00016538,2]
[396506383,1765015841391,-5164.31043572,0.00016538,2]
[396506384,1765015841400,-1000.0,0.00016538,3]
[396506385,1765015841410,-3446.0,0.00016546,2]
[396506386,1765015841419,-1605.0,0.00016546,2]
[396506387,1765015841428,-1323.0,0.00016546,2]
[396506388,1765015841438,-6513.0,0.00016546,2]
[396506389,1765015841447,-562.0,0.00016546,2]
[396506390,1765015841456,-150.0,0.00016548,2]
[396506391,1765015841466,-150.0,0.0001656,2]
[396506392,1765015841477,-150.0,0.0001656,2]
[396506393,1765015841487,-500.0,0.00016566,2]
[396506394,1765015841496,-161.07322189,0.00016567,2]
[396506395,1765015841506,-1000.0,0.0001657,2]
[396506396,1765015841515,-150.0,0.00016572,2]
[396506397,1765015841525,-150.0,0.00016586,2]
[396506398,1765015841534,-150.0,0.00016586,2]
[396506399,1765015841543,-150.0,0.00016591,2]
[396506400,1765015841553,-150.0,0.00016606,2]
[396506401,1765015841562,-592.43343954,0.0001662,2]
[396506402,1765015841571,-306.0,0.00016627,2]
[396506403,1765015841581,-306.0,0.00016634,2]
[396506404,1765015841590,-150.0,0.00016634,2]
[396506405,1765015841599,-150.0,0.00016649,2]
[396506406,1765015841609,-306.0,0.00016661,2]
[396506407,1765015841619,-150.0,0.00016665,2]
[396506408,1765015841628,-150.0,0.0001667,2]
[396506409,1765015841638,-150.0,0.0001668,2]
[396506410,1765015841654,-150.0,0.00016697,2]
[396506411,1765015841663,-800.0,0.000167,2]
[396506412,1765015841672,-500.0,0.00016703,2]
[396506413,1765015841682,-176.23,0.00016712,2]
[396506414,1765015841692,-150.0,0.00016714,2]
[396506415,1765015841701,-150.0,0.00016714,2]
[396506416,1765015841711,-500.0,0.0001672,2]
[396506417,1765015841721,-500.0,0.00016721,2]
[396506418,1765015841730,-500.0,0.00016722,2]
[396506419,1765015841739,-150.0,0.00016723,2]
[396506420,1765015841749,-500.0,0.00016723,2]
[396506421,1765015841758,-500.0,0.00016724,2]
[396506422,1765015841768,-500.0,0.00016725,2]
[396506423,1765015841777,-500.0,0.00016726,2]
[396506424,1765015841786,-500.0,0.00016727,2]
[396506425,1765015841795,-500.0,0.00016728,2]
[396506426,1765015841804,-500.0,0.00016729,2]
[396506427,1765015841814,-500.0,0.0001673,2]
[396506428,1765015841823,-500.0,0.00016731,2]
[396506429,1765015841833,-500.0,0.00016732,2]
[396506430,1765015841844,-500.0,0.00016733,2]
[396506431,1765015841854,-500.0,0.00016734,2]
[396506432,1765015841864,-2488.0,0.00016735,2]
[396506433,1765015841874,-500.0,0.00016735,2]
[396506434,1765015841884,-245.31,0.00016735,2]
[396506435,1765015841893,-500.0,0.00016736,2]
[396506436,1765015841902,-500.0,0.00016737,2]
[396506437,1765015841911,-500.0,0.00016738,2]
[396506438,1765015841921,-500.0,0.00016739,2]
[396506439,1765015841930,-150.0,0.0001674,2]
[396506440,1765015841940,-543.284088,0.0001674,2]
[396506441,1765015841949,-150.0,0.00016748,2]
[396506442,1765015841959,-306.0,0.00016757,2]
[396506443,1765015841969,-1566.91358849,0.00016758,2]
[396506444,1765015841978,-150.0,0.00016759,2]
[396506445,1765015841989,-553.0,0.00016768,2]
[396506446,1765015841999,-306.0,0.00016768,2]
[396506447,1765015842010,-647.71403907,0.00016773,2]
[396506448,1765015842019,-500.0,0.00016773,2]
[396506449,1765015842028,-500.0,0.00016773,2]
[396506450,1765015842037,-500.0,0.00016773,2]
[396506451,1765015842046,-500.0,0.00016773,2]
[396506452,1765015842055,-500.0,0.00016773,2]
[396506453,1765015842064,-500.0,0.00016773,2]
[396506454,1765015842074,-500.0,0.00016773,2]
[396506455,1765015842083,-500.0,0.00016773,2]
[396506456,1765015842092,-500.0,0.00016773,2]
[396506457,1765015842101,-524.99444915,0.00016773,2]
[396506458,1765015842111,-500.0,0.00016773,2]
[396506459,1765015842120,-500.0,0.00016773,2]
[396506460,1765015842129,-500.0,0.00016773,2]
[396506461,1765015842142,-500.0,0.00016773,2]
[396506462,1765015842152,-500.0,0.00016773,2]
[396506463,1765015842161,-500.0,0.00016773,2]
[396506464,1765015842170,-500.0,0.00016773,2]
[396506465,1765015842179,-500.0,0.00016773,2]
[396506466,1765015842190,-809.94,0.00016773,2]
[396506467,1765015842200,-150.0,0.00016781,2]
[396506468,1765015842209,-150.0,0.000168,2]
[396506469,1765015842219,-150.0,0.000168,2]
[396506470,1765015842228,-150.0,0.000168,2]
[396506471,1765015842237,-306.0,0.00016807,2]
[396506472,1765015842251,-150.0,0.00016821,2]
[396506473,1765015842260,-150.0,0.00016826,2]
[396506474,1765015842270,-7000.0,0.0001683,2]
[396506475,1765015842279,-150.0,0.00016839,2]
[396506476,1765015842288,-500.0,0.0001684,2]
[396506477,1765015842297,-150.0,0.00016843,2]
[396506478,1765015842306,-150.0,0.00016843,2]
[396506479,1765015842315,-5032.89170656,0.00016878,2]
[396506480,1765015842324,-5164.31043572,0.00016878,2]
[396506481,1765015842333,-150.0,0.00016883,2]
[396506482,1765015842343,-727.99522482,0.00016896,2]
[396506483,1765015842352,-150.0,0.00016897,2]
[396506484,1765015842362,-10047.4484,0.000169,2]
[396506485,1765015842371,-592.43343954,0.000169,2]
[396506486,1765015842380,-1308.3323589,0.000169,2]
[396506487,1765015842389,-150.0,0.00016904,2]
[396506488,1765015842398,-306.0,0.00016916,2]
[396506489,1765015842407,-150.0,0.0001692,2]
[396506490,1765015842417,-150.0,0.0001692,2]
[396506491,1765015842426,-306.0,0.00016927,2]
[396506492,1765015842435,-150.0,0.00016945,2]
[396506494,1765015842445,-7000.0,0.0001695,2]
[396506496,1765015842454,-306.0,0.00016955,2]
[396506499,1765015842463,-150.0,0.00016955,2]
[396506500,1765015842472,-259.0,0.00016968,2]
[396506501,1765015842481,-150.0,0.00016971,2]
[396506502,1765015842490,-150.0,0.00016971,2]
[396506503,1765015842499,-500.0,0.00016977,2]
[396506504,1765015842508,-150.0,0.00016983,2]
[396506505,1765015842517,-518.5,0.00016986,2]
[396506506,1765015842526,-19871.0,0.00016986,2]
[396506507,1765015842536,-902.27037785,0.0001699,2]
[396506508,1765015842545,-5718.8685587,0.00016996,2]
[396506509,1765015842554,-168674.5889521,0.00016996,2]
[396506510,1765015842563,-12610.6276022,0.00016996,2]
[396506511,1765015842572,-1000.0,0.00016999,2]
[396506512,1765015842581,-300.0,0.00016999,2]
[396506513,1765015842591,-57636.65316393,0.00017,2]
[396506514,1765015842600,-363775.37863469,0.00017,2]
[396506515,1765015842611,-1718625.61785506,0.00017,2]
[396506516,1765015842620,-2000.0,0.00017,2]
[396506517,1765015842630,-200.0,0.00017,2]
[396506518,1765015842639,-150.0,0.00017,2]
[396506519,1765015842649,-1954.94611568,0.00017,2]
[396506520,1765015842658,-306.0,0.00017001,2]
[396506521,1765015842667,-150.0,0.00017007,2]
[396506522,1765015842677,-150.0,0.00017013,2]
[396506523,1765015842686,-306.0,0.00017015,2]
[396506524,1765015842695,-435.2,0.00017028,2]
[396506525,1765015842704,-150.0,0.0001704,2]
[396506526,1765015842713,-809.94,0.00017047,2]
[396506527,1765015842723,-150.0,0.00017061,2]
[396506528,1765015842732,-306.0,0.00017063,2]
[396506529,1765015842742,-150.0,0.00017069,2]
[396506530,1765015842751,-150.0,0.00017071,2]
[396506531,1765015842760,-150.0,0.000171,2]
[396506532,1765015842770,-150.0,0.000171,2]
[396506533,1765015842779,-150.0,0.000171,2]
[396506534,1765015842788,-150.0,0.000171,2]
[396506535,1765015842797,-150.0,0.000171,2]
[396506536,1765015842806,-150.0,0.000171,2]
[396506537,1765015842815,-150.0,0.000171,2]
[396506538,1765015842824,-1308.33235887,0.000171,2]
[396506539,1765015842834,-500.0,0.00017114,2]
[396506540,1765015842843,-1000.0,0.00017118,2]
[396506541,1765015842852,-150.0,0.00017129,2]
[396506542,1765015842864,-150.0,0.00017131,2]
[396506543,1765015842874,-150.0,0.00017139,2]
[396506544,1765015842884,-161.07322189,0.00017145,2]
[396506545,1765015842893,-150.0,0.0001716,2]
[396506546,1765015842903,-200.0,0.0001717,2]
[396506547,1765015842912,-166.12,0.00017174,2]
[396506548,1765015842921,-253.74329182,0.00017176,2]
[396506549,1765015842930,-150.0,0.00017187,2]
[396506550,1765015842940,-150.0,0.00017193,2]
[396506551,1765015842948,-314.89,0.00017199,2]
[396506552,1765015842958,-7000.0,0.0001721,2]
[396506553,1765015842967,-150.0,0.00017217,2]
[396506554,1765015842976,-5032.89170656,0.00017219,2]
[396506555,1765015842985,-5164.31043572,0.00017219,2]
[396506556,1765015842995,-150.0,0.00017229,2]
[396506557,1765015843004,-150.0,0.00017229,2]
[396506558,1765015843013,-150.0,0.00017245,2]
[396506559,1765015843023,-2834.0,0.00017251,2]
[396506560,1765015843032,-500.0,0.00017251,2]
[396506561,1765015843042,-150.0,0.00017255,2]
[396506562,1765015843051,-151.49,0.0001726,2]
[396506563,1765015843060,-306.0,0.00017265,2]
[396506564,1765015843069,-150.0,0.0001728,2]
[396506565,1765015843078,-150.0,0.0001728,2]
[396506566,1765015843087,-150.0,0.00017296,2]
[396506567,1765015843097,-1308.33235887,0.000173,2]
[396506568,1765015843106,-150.0,0.00017303,2]
[396506569,1765015843117,-306.0,0.00017307,2]
[396506570,1765015843126,-306.0,0.00017311,2]
[396506571,1765015843136,-150.0,0.00017317,2]
[396506572,1765015843148,-924.68101404,0.00017321,2]
[396506573,1765015843157,-306.50805595,0.00017321,2]
[396506574,1765015843166,-153.33190664,0.00017321,2]
[396506575,1765015843174,-1000.0,0.00017321,2]
[396506576,1765015843184,-997.09,0.00017321,2]
[396506577,1765015843193,-1000.0,0.00017321,2]
[396506578,1765015843203,-1000.0,0.00017321,2]
[396506579,1765015843213,-1000.0,0.00017321,2]
[396506580,1765015843288,-1000.0,0.00017321,2]
[396506581,1765015843297,-620.9594615,0.00017321,2]
[396506582,1765015843307,-999.10825232,0.00017321,2]
[396506583,1765015843316,-872.42050696,0.00017321,2]
[396506584,1765015843325,-1000.00000017,0.00017321,2]
[396506585,1765015843334,-1000.0,0.00017321,2]
[396506586,1765015843343,-1000.0,0.00017321,2]
[396506587,1765015843353,-1000.0,0.00017321,2]
[396506588,1765015843361,-1000.0,0.00017321,2]
[396506589,1765015843370,-809.94,0.00017321,2]
[396506590,1765015843380,-200.0,0.00017342,2]
[396506591,1765015843389,-150.0,0.00017357,2]
[396506592,1765015843399,-150.0,0.00017357,2]
[396506593,1765015843408,-435.2,0.00017359,2]
[396506594,1765015843417,-150.0,0.00017361,2]
[396506595,1765015843426,-150.0,0.00017374,2]
[396506596,1765015843435,-150.0,0.00017379,2]
[396506597,1765015843444,-2834.0,0.00017388,2]
[396506598,1765015843453,-500.0,0.00017388,2]
[396506599,1765015843464,-150.0,0.000174,2]